fUST/lending_fUST_20250605
["ID","MTS","AMOUNT","RATE_DAILY","PERIOD"]
[364274433,1749055832468,-440.0,0.00016438,2]
[364274435,1749055832477,-440.0,0.00016438,2]
[364274437,1749055832487,-300.35221266,0.00016438,2]
[364274439,1749055832496,-440.0,0.00016438,2]
[364274441,1749055832505,-440.0,0.00016438,2]
[364274443,1749055832517,-430.0,0.00016438,2]
[364274444,1749055832532,-440.0,0.00016438,2]
[364274446,1749055832542,-430.0,0.00016438,2]
[364274448,1749055832553,-440.0,0.00016438,2]
[364274451,1749055832563,-169.29125967,0.00016611,2]
[364274453,1749055832574,-1000.13213754,0.00016711,2]
[364274455,1749055832584,-952.84,0.00016711,2]
[364274457,1749055832594,-921.34,0.00016711,2]
[364274459,1749055832603,-440.0,0.00016711,2]
[364274461,1749055832615,-440.0,0.00016711,2]
[364274462,1749055832626,-440.0,0.00016711,2]
[364274464,1749055832636,-440.0,0.00016711,2]
[364274466,1749055832647,-440.0,0.00016711,2]
[364274468,1749055832657,-440.0,0.00016712,2]
[364274470,1749055832666,-440.0,0.00016712,2]
[364274472,1749055832676,-440.0,0.00016712,2]
[364274474,1749055832685,-440.0,0.00016712,2]
[364274476,1749055832694,-440.0,0.00016712,2]
[364274479,1749055832704,-440.0,0.00016712,2]
[364274481,1749055832714,-440.0,0.00016712,2]
[364274483,1749055832723,-1161.32,0.00016712,2]
[364274485,1749055832732,-440.0,0.00016712,2]
[364274486,1749055832741,-440.0,0.00016712,2]
[364274488,1749055832750,-440.0,0.00016712,2]
[364274490,1749055832759,-440.0,0.00016712,2]
[364274492,1749055832769,-440.0,0.00016712,2]
[364274495,1749055832779,-786.55,0.00016712,2]
[364274496,1749055832788,-942.56,0.00016712,2]
[364274498,1749055832798,-440.0,0.00016712,2]
[364274500,1749055832808,-420.0,0.00016712,2]
[364274502,1749055832817,-440.0,0.00016712,2]
[364274504,1749055832827,-440.0,0.00016712,2]
[364274506,1749055832837,-440.0,0.00016712,2]
[364274508,1749055832846,-440.0,0.00016712,2]
[364274510,1749055832855,-440.0,0.00016712,2]
[364274512,1749055832864,-440.0,0.00016712,2]
[364274514,1749055832873,-440.0,0.00016712,2]
[364274516,1749055832882,-420.0,0.00016712,2]
[364274518,1749055832892,-209.54,0.00016712,2]
[364274520,1749055832901,-440.0,0.00016712,2]
[364274522,1749055832910,-440.0,0.00016712,2]
[364274524,1749055832920,-440.0,0.00016712,2]
[364274526,1749055832929,-952.84,0.00016985,2]
[364274528,1749055832939,-921.34,0.00016985,2]
[364274530,1749055832948,-440.0,0.00016985,2]
[364274532,1749055832957,-440.0,0.00016985,2]
[364274534,1749055832966,-440.0,0.00016985,2]
[364274536,1749055832976,-440.0,0.00016985,2]
[364274539,1749055832985,-440.0,0.00016985,2]
[364274541,1749055832995,-440.0,0.00016986,2]
[364274542,1749055833004,-440.0,0.00016986,2]
[364274545,1749055833014,-440.0,0.00016986,2]
[364274547,1749055833023,-440.0,0.00016986,2]
[364274549,1749055833033,-440.0,0.00016986,2]
[364274551,1749055833043,-440.0,0.00016986,2]
[364274553,1749055833054,-440.0,0.00016986,2]
[364274555,1749055833065,-1161.32,0.00016986,2]
[364274557,1749055833075,-440.0,0.00016986,2]
[364274559,1749055833085,-440.0,0.00016986,2]
[364274561,1749055833094,-440.0,0.00016986,2]
[364274563,1749055833104,-440.0,0.00016986,2]
[364274565,1749055833114,-440.0,0.00016986,2]
[364274567,1749055833123,-786.55,0.00016986,2]
[364274569,1749055833133,-942.56,0.00016986,2]
[364274571,1749055833143,-440.0,0.00016986,2]
[364274572,1749055833153,-504.18,0.00016986,2]
[364274575,1749055833163,-440.0,0.00016986,2]
[364274576,1749055833174,-440.0,0.00016986,2]
[364274579,1749055833184,-440.0,0.00016986,2]
[364274581,1749055833194,-507.9,0.00016986,2]
[364274583,1749055833204,-440.0,0.00016986,2]
[364274584,1749055833214,-440.0,0.00016986,2]
[364274586,1749055833224,-440.0,0.00016986,2]
[364274588,1749055833234,-440.0,0.00016986,2]
[364274590,1749055833245,-440.0,0.00016986,2]
[364274592,1749055833255,-952.84,0.00017259,2]
[364274594,1749055833265,-921.34,0.00017259,2]
[364274596,1749055833276,-440.0,0.00017259,2]
[364274598,1749055833286,-518.28,0.00017259,2]
[364274600,1749055833297,-440.0,0.00017259,2]
[364274602,1749055833308,-440.0,0.00017259,2]
[364274605,1749055833319,-440.0,0.00017259,2]
[364274607,1749055833330,-440.0,0.0001726,2]
[364274609,1749055833342,-440.0,0.0001726,2]
[364274611,1749055833352,-440.0,0.0001726,2]
[364274613,1749055833363,-440.0,0.0001726,2]
[364274615,1749055833374,-440.0,0.0001726,2]
[364274617,1749055833385,-440.0,0.0001726,2]
[364274619,1749055833395,-440.0,0.0001726,2]
[364274621,1749055833405,-1161.32,0.0001726,2]
[364274623,1749055833415,-440.0,0.0001726,2]
[364274637,1749055833550,-440.0,0.0001726,2]
[364274639,1749055833561,-440.0,0.0001726,2]
[364274641,1749055833571,-440.0,0.0001726,2]
[364274643,1749055833581,-515.58,0.0001726,2]
[364274645,1749055833591,-786.55,0.0001726,2]
[364274647,1749055833602,-942.56,0.0001726,2]
[364274649,1749055833612,-440.0,0.0001726,2]
[364274651,1749055833622,-440.0,0.0001726,2]
[364274653,1749055833632,-440.0,0.0001726,2]
[364274654,1749055833646,-440.0,0.0001726,2]
[364274655,1749055833660,-440.0,0.0001726,2]
[364274656,1749055833669,-440.0,0.0001726,2]
[364274657,1749055833679,-440.0,0.0001726,2]
[364274658,1749055833688,-440.0,0.0001726,2]
[364274659,1749055833698,-400.0,0.0001726,2]
[364274660,1749055833709,-3314.41116804,0.00017326,2]
[364274661,1749055833722,-952.84,0.00017533,2]
[364274662,1749055833733,-921.34,0.00017533,2]
[364274663,1749055833744,-440.0,0.00017533,2]
[364274664,1749055833753,-165.45,0.00017533,2]
[364274665,1749055833763,-440.0,0.00017533,2]
[364274666,1749055833774,-440.0,0.00017533,2]
[364274667,1749055833783,-440.0,0.00017534,2]
[364274668,1749055833793,-440.0,0.00017534,2]
[364274669,1749055833804,-440.0,0.00017534,2]
[364274670,1749055833813,-440.0,0.00017534,2]
[364274671,1749055833824,-440.0,0.00017534,2]
[364274672,1749055833834,-440.0,0.00017534,2]
[364274673,1749055833844,-440.0,0.00017534,2]
[364274674,1749055833854,-1161.32,0.00017534,2]
[364274675,1749055833863,-321.15,0.00017534,2]
[364274676,1749055833872,-440.0,0.00017534,2]
[364274677,1749055833882,-440.0,0.00017534,2]
[364274678,1749055833892,-440.0,0.00017534,2]
[364274679,1749055833901,-786.55,0.00017534,2]
[364274680,1749055833910,-942.56,0.00017534,2]
[364274681,1749055833919,-440.0,0.00017534,2]
[364274682,1749055833929,-440.0,0.00017534,2]
[364274683,1749055833938,-472.81,0.00017534,2]
[364274684,1749055833947,-440.0,0.00017534,2]
[364274685,1749055833956,-228.48,0.00017534,2]
[364274686,1749055833966,-550.99383893,0.00017534,2]
[364274687,1749055833975,-440.0,0.00017534,2]
[364274688,1749055833985,-370.3,0.00017534,2]
[364274689,1749055833994,-160.0,0.00017727,2]
[364274690,1749055834004,-952.84,0.00017807,2]
[364274691,1749055834013,-921.34,0.00017807,2]
[364274693,1749055834023,-440.0,0.00017807,2]
[364274694,1749055834032,-440.0,0.00017807,2]
[364274695,1749055834042,-440.0,0.00017807,2]
[364274697,1749055834053,-269.04,0.00017808,2]
[364274699,1749055834063,-440.0,0.00017808,2]
[364274701,1749055834072,-440.0,0.00017808,2]
[364274703,1749055834082,-440.0,0.00017808,2]
[364274705,1749055834091,-440.0,0.00017808,2]
[364274706,1749055834101,-440.0,0.00017808,2]
[364274708,1749055834110,-256.434,0.00017808,2]
[364274710,1749055834120,-1161.32,0.00017808,2]
[364274713,1749055834131,-440.0,0.00017808,2]
[364274714,1749055834141,-440.0,0.00017808,2]
[364274716,1749055834151,-440.0,0.00017808,2]
[364274718,1749055834161,-786.55,0.00017808,2]
[364274720,1749055834171,-942.56,0.00017808,2]
[364274723,1749055834182,-440.0,0.00017808,2]
[364274724,1749055834192,-440.0,0.00017808,2]
[364274726,1749055834201,-440.0,0.00017808,2]
[364274729,1749055834213,-440.0,0.00017808,2]
[364274731,1749055834223,-966.57720137,0.000179,2]
[364274733,1749055834234,-420.0,0.00017963,2]
[364274734,1749055834244,-175.3743123,0.00017972,2]
[364274736,1749055834254,-420.08423515,0.00018072,2]
[364274738,1749055834264,-930.45067815,0.00018072,2]
[364274741,1749055834275,-470.17923748,0.00018072,2]
[364274742,1749055834285,-930.45067815,0.00018072,2]
[364274744,1749055834295,-930.45067815,0.00018072,2]
[364274746,1749055834308,-930.45067815,0.00018072,2]
[364274748,1749055834318,-930.45067815,0.00018072,2]
[364274751,1749055834328,-930.45067815,0.00018072,2]
[364274752,1749055834339,-930.45067815,0.00018072,2]
[364274755,1749055834349,-930.45067815,0.00018072,2]
[364274757,1749055834361,-930.45067815,0.00018072,2]
[364274759,1749055834371,-930.45067815,0.00018072,2]
[364274761,1749055834380,-930.45067815,0.00018072,2]
[364274762,1749055834389,-930.45067815,0.00018072,2]
[364274764,1749055834399,-930.45067815,0.00018072,2]
[364274767,1749055834409,-930.45067815,0.00018072,2]
[364274769,1749055834419,-930.45067815,0.00018072,2]
[364274771,1749055834429,-930.45067815,0.00018072,2]
[364274773,1749055834438,-930.45067815,0.00018072,2]
[364274775,1749055834448,-930.45067815,0.00018072,2]
[364274777,1749055834461,-930.45067815,0.00018072,2]
[364274778,1749055834470,-930.45067815,0.00018072,2]
[364274780,1749055834480,-930.45067815,0.00018072,2]
[364274782,1749055834490,-930.45067815,0.00018072,2]
[364274784,1749055834499,-930.45067815,0.00018072,2]
[364274786,1749055834509,-930.45067815,0.00018072,2]
[364274788,1749055834518,-930.45067815,0.00018072,2]
[364274790,1749055834529,-930.45067815,0.00018072,2]
[364274792,1749055834544,-930.45067815,0.00018072,2]
[364274794,1749055834556,-930.45067815,0.00018072,2]
[364274797,1749055834566,-930.45067815,0.00018072,2]
[364274799,1749055834576,-930.45067815,0.00018072,2]
[364274800,1749055834586,-930.45067815,0.00018072,2]
[364274803,1749055834596,-930.45067815,0.00018072,2]
[364274804,1749055834606,-930.45067815,0.00018072,2]
[364274806,1749055834616,-930.45067815,0.00018072,2]
[364274809,1749055834627,-930.45067815,0.00018072,2]
[364274811,1749055834637,-930.45067815,0.00018072,2]
[364274813,1749055834646,-930.45067815,0.00018072,2]
[364274814,1749055834655,-930.45067815,0.00018072,2]
[364274816,1749055834665,-930.45067815,0.00018072,2]
[364274819,1749055834675,-930.45067815,0.00018072,2]
[364274820,1749055834684,-930.45067815,0.00018072,2]
[364274822,1749055834693,-930.45067815,0.00018072,2]
[364274824,1749055834702,-930.45067815,0.00018072,2]
[364274826,1749055834711,-930.45067815,0.00018072,2]
[364274828,1749055834721,-930.45067815,0.00018072,2]
[364274830,1749055834731,-930.45067815,0.00018072,2]
[364274832,1749055834741,-930.45067815,0.00018072,2]
[364274834,1749055834751,-930.45067815,0.00018072,2]
[364274836,1749055834761,-930.45067815,0.00018072,2]
[364274838,1749055834770,-930.45067815,0.00018072,2]
[364274840,1749055834779,-930.45067815,0.00018072,2]
[364274842,1749055834790,-930.45067815,0.00018072,2]
[364274844,1749055834800,-930.45067815,0.00018072,2]
[364274846,1749055834809,-930.45067815,0.00018072,2]
[364274848,1749055834819,-930.45067815,0.00018072,2]
[364274850,1749055834828,-930.45067815,0.00018072,2]
[364274852,1749055834837,-930.45067815,0.00018072,2]
[364274854,1749055834846,-930.45067815,0.00018072,2]
[364274856,1749055834856,-930.45067815,0.00018072,2]
[364274858,1749055834865,-930.45067815,0.00018072,2]
[364274860,1749055834875,-930.45067815,0.00018072,2]
[364274862,1749055834884,-930.45067815,0.00018072,2]
[364274864,1749055834894,-930.45067815,0.00018072,2]
[364274866,1749055834903,-930.45067815,0.00018072,2]
[364274868,1749055834912,-930.45067815,0.00018072,2]
[364274870,1749055834922,-930.45067815,0.00018072,2]
[364274872,1749055834931,-930.45067815,0.00018072,2]
[364274874,1749055834941,-9107.11001149,0.00018072,2]
[364274876,1749055834950,-9107.11001149,0.00018072,2]
[364274878,1749055834959,-9107.11001149,0.00018072,2]
[364274880,1749055834969,-9107.11001149,0.00018072,2]
[364274881,1749055834979,-9107.11001149,0.00018072,2]
[364274883,1749055834988,-9107.11001149,0.00018072,2]
[364274885,1749055834997,-9107.11001149,0.00018072,2]
[364274887,1749055835007,-9107.11001149,0.00018072,2]
[364274889,1749055835017,-9107.11001149,0.00018072,2]
[364274891,1749055835026,-9107.11001149,0.00018072,2]
[364274893,1749055835036,-9107.11001149,0.00018072,2]
[364274895,1749055835045,-9107.11001149,0.00018072,2]
[364274897,1749055835056,-9107.11001149,0.00018072,2]
[364274899,1749055835065,-9107.11001149,0.00018072,2]
[364274901,1749055835074,-9107.11001149,0.00018072,2]
[364274903,1749055835083,-7279.67346569,0.00018072,2]
[364274906,1749055835098,-435.39202483,0.00018072,2]
[364275191,1749055837840,-440.0,0.00016438,2]
[364275193,1749055837850,-440.0,0.00016712,2]
[364275195,1749055837860,-440.0,0.00016986,2]
[364275197,1749055837869,-500.0,0.00018073,2]
[364275199,1749055837879,-500.0,0.00018073,2]
[364275201,1749055837890,-500.0,0.00018073,2]
[364275204,1749055837899,-500.0,0.00018073,2]
[364275207,1749055837909,-952.84,0.00018081,2]
[364275210,1749055837918,-921.34,0.00018081,2]
[364275212,1749055837928,-440.0,0.00018081,2]
[364275214,1749055837938,-440.0,0.00018081,2]
[364275216,1749055837947,-440.0,0.00018081,2]
[364275218,1749055837957,-440.0,0.00018082,2]
[364275220,1749055837967,-440.0,0.00018082,2]
[364275222,1749055837976,-440.0,0.00018082,2]
[364275224,1749055837986,-440.0,0.00018082,2]
[364275226,1749055837995,-440.0,0.00018082,2]
[364275228,1749055838004,-1161.32,0.00018082,2]
[364275230,1749055838014,-440.0,0.00018082,2]
[364275232,1749055838023,-440.0,0.00018082,2]
[364275234,1749055838033,-270.24,0.00018082,2]
[364275236,1749055838042,-786.55,0.00018082,2]
[364275238,1749055838053,-942.56,0.00018082,2]
[364275240,1749055838062,-440.0,0.00018082,2]
[364275242,1749055838071,-440.0,0.00018082,2]
[364275244,1749055838081,-440.0,0.00018082,2]
[364275256,1749055838091,-440.0,0.00018082,2]
[364275259,1749055838203,-966.57720118,0.00018141,2]
[364275261,1749055838212,-952.84,0.00018355,2]
[364275263,1749055838222,-921.34,0.00018355,2]
[364275265,1749055838231,-351.39,0.00018355,2]
[364275267,1749055838241,-440.0,0.00018355,2]
[364275269,1749055838251,-440.0,0.00018355,2]
[364275271,1749055838260,-551.48,0.00018356,2]
[364275273,1749055838270,-440.0,0.00018356,2]
[364275275,1749055838280,-440.0,0.00018356,2]
[364275277,1749055838291,-440.0,0.00018356,2]
[364275279,1749055838301,-440.0,0.00018356,2]
[364275281,1749055838313,-1161.32,0.00018356,2]
[364275283,1749055838322,-440.0,0.00018356,2]
[364275285,1749055838333,-440.0,0.00018356,2]
[364275288,1749055838343,-786.55,0.00018356,2]
[364275290,1749055838353,-942.56,0.00018356,2]
[364275291,1749055838363,-440.0,0.00018356,2]
[364275294,1749055838374,-440.0,0.00018356,2]
[364275296,1749055838384,-440.0,0.00018356,2]
[364275298,1749055838393,-440.0,0.00018356,2]
[364275300,1749055838406,-966.57720118,0.00018383,2]
[364275302,1749055838416,-205.04959924,0.0001853,2]
[364275304,1749055838426,-1000.0,0.00018621,2]
[364275306,1749055838435,-966.57720118,0.00018624,2]
[364275308,1749055838445,-952.84,0.00018629,2]
[364275310,1749055838455,-921.34,0.00018629,2]
[364275312,1749055838465,-440.0,0.00018629,2]
[364275314,1749055838475,-440.0,0.00018629,2]
[364275316,1749055838485,-440.0,0.0001863,2]
[364275318,1749055838494,-440.0,0.0001863,2]
[364275320,1749055838504,-440.0,0.0001863,2]
[364275322,1749055838514,-440.0,0.0001863,2]
[364275324,1749055838526,-1161.32,0.0001863,2]
[364275327,1749055838537,-440.0,0.0001863,2]
[364275328,1749055838547,-440.0,0.0001863,2]
[364275331,1749055838557,-786.55,0.0001863,2]
[364275332,1749055838566,-942.56,0.0001863,2]
[364275334,1749055838576,-440.0,0.0001863,2]
[364275336,1749055838586,-440.0,0.0001863,2]
[364275338,1749055838596,-440.0,0.0001863,2]
[364275340,1749055838605,-440.0,0.0001863,2]
[364275342,1749055838616,-229.45591648,0.00018802,2]
[364275344,1749055838626,-160.0,0.00018802,2]
[364275346,1749055838636,-160.0,0.00018802,2]
[364275349,1749055838646,-160.0,0.00018802,2]
[364275351,1749055838655,-966.57720118,0.00018866,2]
[364275353,1749055838665,-952.84,0.00018903,2]
[364275355,1749055838674,-921.34,0.00018903,2]
[364275357,1749055838684,-440.0,0.00018903,2]
[364275359,1749055838694,-440.0,0.00018903,2]
[364275361,1749055838703,-281.25,0.00018904,2]
[364275363,1749055838713,-286.52,0.00018904,2]
[364275365,1749055838722,-440.0,0.00018904,2]
[364275367,1749055838731,-440.0,0.00018904,2]
[364275369,1749055838740,-1161.32,0.00018904,2]
[364275371,1749055838749,-440.0,0.00018904,2]
[364275373,1749055838759,-440.0,0.00018904,2]
[364275375,1749055838768,-786.55,0.00018904,2]
[364275377,1749055838778,-942.56,0.00018904,2]
[364275379,1749055838787,-337.88,0.00018904,2]
[364275381,1749055838797,-299.57,0.00018904,2]
[364275383,1749055838807,-440.0,0.00018904,2]
[364275385,1749055838817,-440.0,0.00018904,2]
[364275387,1749055838827,-966.57720118,0.00019107,2]
[364275389,1749055838837,-600.91233382,0.0001911,2]
[364275391,1749055838846,-1160.836397,0.00019168,2]
[364275393,1749055838856,-952.84,0.00019177,2]
[364275395,1749055838868,-921.34,0.00019177,2]
[364275397,1749055838878,-440.0,0.00019177,2]
[364275399,1749055838888,-440.0,0.00019177,2]
[364275401,1749055838897,-433.27,0.00019178,2]
[364275403,1749055838907,-440.0,0.00019178,2]
[364275405,1749055838916,-440.0,0.00019178,2]
[364275407,1749055838926,-440.0,0.00019178,2]
[364275410,1749055838936,-419.10259243,0.00019178,2]
[364275412,1749055838945,-1161.32,0.00019178,2]
[364275413,1749055838954,-440.0,0.00019178,2]
[364275414,1749055838963,-400.0,0.00019178,2]
[364275415,1749055838972,-400.0,0.00019178,2]
[364275416,1749055838980,-400.0,0.00019178,2]
[364275417,1749055838990,-400.0,0.00019178,2]
[364275418,1749055838999,-400.0,0.00019178,2]
[364275419,1749055839008,-400.0,0.00019178,2]
[364275420,1749055839017,-400.0,0.00019178,2]
[364275421,1749055839026,-400.0,0.00019178,2]
[364275422,1749055839036,-400.0,0.00019178,2]
[364275423,1749055839045,-400.0,0.00019178,2]
[364275424,1749055839054,-400.0,0.00019178,2]
[364275425,1749055839064,-440.0,0.00019178,2]
[364275426,1749055839073,-786.55,0.00019178,2]
[364275427,1749055839082,-942.56,0.00019178,2]
[364275428,1749055839092,-440.0,0.00019178,2]
[364275429,1749055839102,-440.0,0.00019178,2]
[364275430,1749055839114,-188.5182,0.00019178,2]
[364275431,1749055839127,-966.57720118,0.00019348,2]
[364275432,1749055839142,-952.84,0.00019451,2]
[364275433,1749055839158,-921.34,0.00019451,2]
[364275434,1749055839172,-440.0,0.00019451,2]
[364275435,1749055839182,-440.0,0.00019451,2]
[364275436,1749055839192,-440.0,0.00019452,2]
[364275437,1749055839203,-1161.32,0.00019452,2]
[364275438,1749055839213,-440.0,0.00019452,2]
[364275439,1749055839224,-400.0,0.00019452,2]
[364275440,1749055839233,-440.0,0.00019452,2]
[364275441,1749055839251,-786.55,0.00019452,2]
[364275442,1749055839261,-942.56,0.00019452,2]
[364275443,1749055839270,-440.0,0.00019452,2]
[364275444,1749055839282,-440.0,0.00019452,2]
[364275445,1749055839296,-966.57720118,0.0001959,2]
[364275447,1749055839311,-587.0,0.00019631,2]
[364275449,1749055839324,-952.84,0.00019725,2]
[364275451,1749055839337,-921.34,0.00019725,2]
[364275452,1749055839349,-440.0,0.00019725,2]
[364275453,1749055839363,-440.0,0.00019725,2]
[364275454,1749055839380,-508.4,0.00019726,2]
[364275455,1749055839390,-1161.32,0.00019726,2]
[364275456,1749055839402,-440.0,0.00019726,2]
[364275457,1749055839419,-400.0,0.00019726,2]
[364275458,1749055839430,-440.0,0.00019726,2]
[364275459,1749055839444,-786.55,0.00019726,2]
[364275460,1749055839454,-942.56,0.00019726,2]
[364275461,1749055839463,-440.0,0.00019726,2]
[364275463,1749055839473,-440.0,0.00019726,2]
[364275464,1749055839482,-216.804,0.00019806,2]
[364275465,1749055839492,-966.57720118,0.00019831,2]
[364275466,1749055839502,-175.37431229,0.00019881,2]
[364275467,1749055839516,-952.84,0.00019999,2]
[364275468,1749055839528,-921.34,0.00019999,2]
[364275469,1749055839546,-541.11428667,0.00019999,2]
[364275470,1749055839561,-440.0,0.00019999,2]
[364275471,1749055839574,-1161.32,0.0002,2]
[364275472,1749055839587,-440.0,0.0002,2]
[364275473,1749055839598,-400.0,0.0002,2]
[364275474,1749055839612,-440.0,0.0002,2]
[364275475,1749055839624,-786.55,0.0002,2]
[364275476,1749055839636,-942.56,0.0002,2]
[364275477,1749055839649,-531.74272739,0.0002,2]
[364275478,1749055839661,-440.0,0.0002,2]
[364275479,1749055839674,-1800.0,0.00020068,2]
[364275480,1749055839687,-966.57720118,0.00020072,2]
[364275481,1749055839700,-1161.32,0.00020273,2]
[364275482,1749055839712,-440.0,0.00020273,2]
[364275483,1749055839725,-420.0,0.00020273,2]
[364275484,1749055839738,-440.0,0.00020273,2]
[364275485,1749055839749,-952.84,0.00020273,2]
[364275486,1749055839771,-921.34,0.00020273,2]
[364275487,1749055839791,-786.55,0.00020273,2]
[364275488,1749055839805,-942.56,0.00020273,2]
[364275489,1749055839820,-440.0,0.00020273,2]
[364275490,1749055839837,-440.0,0.00020273,2]
[364275491,1749055839851,-966.57720118,0.00020314,3]
[364275492,1749055839864,-500.0,0.00020547,2]
[364275493,1749055839878,-1161.32,0.00020547,2]
[364275494,1749055839890,-440.0,0.00020547,2]
[364275495,1749055839901,-440.0,0.00020547,2]
[364275496,1749055839913,-952.84,0.00020547,2]
[364275497,1749055839926,-921.34,0.00020547,2]
[364275498,1749055839937,-786.55,0.00020547,2]
[364275499,1749055839951,-942.56,0.00020547,2]
[364275500,1749055839965,-440.0,0.00020547,2]
[364275501,1749055839977,-440.0,0.00020547,2]
[364275502,1749055839991,-966.57720118,0.00020555,3]
[364275503,1749055840003,-540.27,0.000206,2]
[364275504,1749055840017,-1239.53,0.000206,2]
[364275505,1749055840031,-49565.63,0.000206,2]
[364275506,1749055840044,-800.0,0.00020732,2]
[364275507,1749055840058,-966.57720118,0.00020797,4]
[364275508,1749055840074,-1161.32,0.00020821,2]
[364275509,1749055840086,-440.0,0.00020821,2]
[364275510,1749055840097,-440.0,0.00020821,2]
[364275511,1749055840108,-952.84,0.00020821,2]
[364275512,1749055840120,-921.34,0.00020821,2]
[364275513,1749055840132,-786.55,0.00020821,2]
[364275514,1749055840144,-942.56,0.00020821,2]
[364275515,1749055840157,-440.0,0.00020821,2]
[364275516,1749055840171,-440.0,0.00020821,2]
[364275517,1749055840184,-500.0,0.00020956,2]
[364275518,1749055840196,-500.0,0.0002098,2]
[364275519,1749055840207,-500.0,0.0002098,2]
[364275520,1749055840220,-500.0,0.0002098,2]
[364275521,1749055840231,-500.0,0.0002098,2]
[364275522,1749055840242,-500.0,0.0002098,2]
[364275523,1749055840256,-966.57720118,0.00021038,4]
[364275524,1749055840269,-500.0,0.00021095,3]
[364275525,1749055840280,-1161.32,0.00021095,2]
[364275526,1749055840290,-248.00788673,0.00021095,2]
[364275527,1749055840301,-440.0,0.00021095,2]
[364275528,1749055840314,-952.84,0.00021095,2]
[364275529,1749055840325,-921.34,0.00021095,2]
[364275530,1749055840337,-786.55,0.00021095,2]
[364275531,1749055840349,-942.56,0.00021095,2]
[364275532,1749055840362,-440.0,0.00021095,2]
[364275533,1749055840374,-440.0,0.00021095,2]
[364275534,1749055840386,-500.0,0.0002115,2]
[364275535,1749055840398,-500.0,0.0002115,2]
[364275536,1749055840411,-500.0,0.0002115,2]
[364275537,1749055840423,-500.0,0.0002115,2]
[364275538,1749055840438,-1800.0,0.00021164,2]
[364275539,1749055840449,-500.0,0.0002124,2]
[364275540,1749055840460,-500.0,0.0002124,2]
[364275541,1749055840472,-600.0,0.0002124,2]
[364275542,1749055840484,-500.0,0.00021269,2]
[364275543,1749055840495,-575.49483425,0.00021269,2]
[364275544,1749055840507,-500.0,0.00021269,2]
[364275545,1749055840519,-160.3024375,0.00021269,2]
[364275546,1749055840534,-500.0,0.00021269,2]
[364275547,1749055840546,-966.57720118,0.00021279,5]
[364275548,1749055840558,-800.0,0.00021344,2]
[364275549,1749055840571,-1161.32,0.00021369,2]
[364275550,1749055840582,-440.0,0.00021369,2]
[364275551,1749055840594,-952.84,0.00021369,2]
[364275552,1749055840605,-921.34,0.00021369,2]
[364275553,1749055840618,-786.55,0.00021369,2]
[364275554,1749055840629,-942.56,0.00021369,2]
[364275555,1749055840640,-240.84,0.00021369,2]
[364275556,1749055840651,-440.0,0.00021369,2]
[364275557,1749055840662,-546.72605437,0.00021433,2]
[364275558,1749055840672,-1000.0,0.00021504,2]
[364275559,1749055840683,-966.57720118,0.00021521,5]
[364275560,1749055840695,-1000.0,0.00021528,2]
[364275561,1749055840706,-509.59323327,0.00021528,2]